[Event "*** Titled Tuesday Blitz"]
[Site "Chess.com"]
[Date "2020.04.07"]
[Round "3"]
[White "IrI_Cheetah"]
[Black "Sviridov_Valery"]
[Result "0-1"]
[WhiteElo "2333"]
[BlackElo "2746"]
[TimeControl "180+1"]
[EndTime "13:28:42 PDT"]
[Termination "Sviridov_Valery won by resignation"]

1. e4 {[%clk 0:01:56.8]} 1... g6 {[%clk 0:02:58.3]} 2. h4 {[%clk 0:01:55.9]}
2... h5 {[%clk 0:02:54.4]} 3. g4 {[%clk 0:01:53.5]} 3... hxg4 {[%clk 0:02:53.2]}
4. Nc3 {[%clk 0:01:50.1]} 4... d6 {[%clk 0:02:51.8]} 5. d4 {[%clk 0:01:45.6]}
5... Bg7 {[%clk 0:02:49]} 6. Be2 {[%clk 0:01:37.5]} 6... Nc6 {[%clk 0:02:47.2]}
7. Be3 {[%clk 0:01:36.9]} 7... e5 {[%clk 0:02:46.9]} 8. dxe5 {[%clk 0:01:23.1]}
8... Nxe5 {[%clk 0:02:47.8]} 9. Qd2 {[%clk 0:01:11.4]} 9... Rxh4 {[%clk
0:02:11.5]} 10. Rxh4 {[%clk 0:01:11]} 10... Qxh4 {[%clk 0:02:12.4]} 11. O-O-O
{[%clk 0:01:11]} 11... Qd8 {[%clk 0:02:07.7]} 12. f4 {[%clk 0:01:08.7]} 12...
gxf3 {[%clk 0:02:07.3]} 13. Nxf3 {[%clk 0:01:08.4]} 13... Nxf3 {[%clk 0:02:02]}
14. Bxf3 {[%clk 0:01:09.3]} 14... c6 {[%clk 0:02:02.9]} 15. Bf4 {[%clk
0:01:00.8]} 15... Be6 {[%clk 0:01:59.4]} 16. Kb1 {[%clk 0:00:58.8]} 16... Qa5
{[%clk 0:01:45.9]} 17. Qxd6 {[%clk 0:00:43.9]} 17... Rd8 {[%clk 0:01:45.2]} 18.
Qxd8+ {[%clk 0:00:31.7]} 18... Qxd8 {[%clk 0:01:46.1]} 19. Rxd8+ {[%clk
0:00:32.1]} 19... Kxd8 {[%clk 0:01:47]} 20. Na4 {[%clk 0:00:32.2]} 20... b6
{[%clk 0:01:36.2]} 21. Bb8 {[%clk 0:00:31.8]} 21... Bd4 {[%clk 0:01:14.6]} 22.
c3 {[%clk 0:00:24.4]} 22... Be3 {[%clk 0:01:14.2]} 23. Kc2 {[%clk 0:00:19.4]}
23... Kc8 {[%clk 0:01:12.8]} 24. Be5 {[%clk 0:00:17.9]} 24... b5 {[%clk
0:01:10.2]} 25. Kd3 {[%clk 0:00:06.2]} 25... Bg1 {[%clk 0:01:10.7]} 0-1

[Event "*** Titled Tuesday Blitz"]
[Site "Chess.com"]
[Date "2020.04.07"]
[Round "3"]
[White "SmirnovTimofey2000"]
[Black "Teidi96"]
[Result "1-0"]
[WhiteElo "2534"]
[BlackElo "2221"]
[TimeControl "180+1"]
[EndTime "13:28:44 PDT"]
[Termination "SmirnovTimofey2000 won by resignation"]

1. e4 {[%clk 0:02:57.9]} 1... c5 {[%clk 0:02:59]} 2. Nf3 {[%clk 0:02:57.3]} 2...
e6 {[%clk 0:02:59.5]} 3. d4 {[%clk 0:02:57.6]} 3... cxd4 {[%clk 0:03:00.4]} 4.
Nxd4 {[%clk 0:02:57.9]} 4... Nc6 {[%clk 0:03:00.9]} 5. Nc3 {[%clk 0:02:57.9]}
5... Qc7 {[%clk 0:03:00.9]} 6. Be3 {[%clk 0:02:53.9]} 6... a6 {[%clk 0:03:01.3]}
7. Qd2 {[%clk 0:02:53]} 7... Nf6 {[%clk 0:03:00.8]} 8. f3 {[%clk 0:02:52.9]}
8... Bb4 {[%clk 0:02:58.2]} 9. O-O-O {[%clk 0:02:52.9]} 9... O-O {[%clk
0:02:51.9]} 10. a3 {[%clk 0:02:46.7]} 10... Be7 {[%clk 0:02:45.6]} 11. g4 {[%clk
0:02:42.8]} 11... b5 {[%clk 0:02:45]} 12. g5 {[%clk 0:02:41.6]} 12... Nh5 {[%clk
0:02:45]} 13. Nb3 {[%clk 0:02:38.4]} 13... b4 {[%clk 0:02:41.8]} 14. axb4 {[%clk
0:02:37.6]} 14... Bxb4 {[%clk 0:02:42.7]} 15. Bc5 {[%clk 0:02:35.1]} 15... Bxc5
{[%clk 0:02:31.9]} 16. Nxc5 {[%clk 0:02:34]} 16... Ne5 {[%clk 0:02:20.7]} 17.
Qd6 {[%clk 0:02:27]} 17... Qxd6 {[%clk 0:02:10.4]} 18. Rxd6 {[%clk 0:02:27.9]}
18... Nf4 {[%clk 0:02:01.7]} 19. Ne2 {[%clk 0:02:25.5]} 19... Nc4 {[%clk
0:01:20.9]} 20. Rd4 {[%clk 0:02:23.9]} 20... Nxe2+ {[%clk 0:01:20.8]} 21. Bxe2
{[%clk 0:02:23.9]} 21... Nb6 {[%clk 0:01:21.5]} 22. Rd6 {[%clk 0:02:22.6]} 22...
Rb8 {[%clk 0:01:09.3]} 23. Bxa6 {[%clk 0:02:21.4]} 23... Bxa6 {[%clk 0:01:04]}
24. Nxa6 {[%clk 0:02:21.3]} 24... Rb7 {[%clk 0:01:04.4]} 25. Nc5 {[%clk
0:02:19.9]} 25... Rc7 {[%clk 0:00:59.8]} 26. Rxb6 {[%clk 0:02:18.5]} 26... Rxc5
{[%clk 0:00:59.7]} 27. Rd6 {[%clk 0:02:14.1]} 27... Rxg5 {[%clk 0:00:36.1]} 28.
Rxd7 {[%clk 0:02:13.4]} 28... Rg2 {[%clk 0:00:33.8]} 29. Rd2 {[%clk 0:02:12.4]}
29... Rg5 {[%clk 0:00:29.2]} 30. b4 {[%clk 0:02:02.4]} 30... Rc8 {[%clk
0:00:20]} 31. Kb2 {[%clk 0:01:59.9]} 31... h5 {[%clk 0:00:18.5]} 32. Rhd1 {[%clk
0:01:54.8]} 32... Kh7 {[%clk 0:00:16.9]} 33. Kb3 {[%clk 0:01:53.9]} 33... Rb5
{[%clk 0:00:15.2]} 34. c4 {[%clk 0:01:51.5]} 34... Rb7 {[%clk 0:00:14.4]} 35.
Rd7 {[%clk 0:01:50.6]} 35... Rcb8 {[%clk 0:00:14.1]} 36. Rxb7 {[%clk 0:01:50]}
36... Rxb7 {[%clk 0:00:14.9]} 37. c5 {[%clk 0:01:50.3]} 37... Kg6 {[%clk
0:00:12.4]} 38. Kc4 {[%clk 0:01:48.7]} 38... Kf6 {[%clk 0:00:12.4]} 39. c6
{[%clk 0:01:47.2]} 39... Rc7 {[%clk 0:00:10.5]} 40. Kc5 {[%clk 0:01:46.5]} 40...
Ke7 {[%clk 0:00:10.2]} 41. b5 {[%clk 0:01:46.8]} 41... g5 {[%clk 0:00:08.3]} 42.
b6 {[%clk 0:01:46.7]} 42... Rc8 {[%clk 0:00:08.5]} 43. b7 {[%clk 0:01:46.9]} 1-0

[Event "*** Titled Tuesday Blitz"]
[Site "Chess.com"]
[Date "2020.04.07"]
[Round "3"]
[White "Vugar_Manafov"]
[Black "GOGIEFF"]
[Result "0-1"]
[WhiteElo "2671"]
[BlackElo "2948"]
[TimeControl "180+1"]
[EndTime "13:28:46 PDT"]
[Termination "GOGIEFF won by resignation"]

1. d4 {[%clk 0:03:00.9]} 1... d5 {[%clk 0:02:58.9]} 2. Nf3 {[%clk 0:02:59.4]}
2... Nf6 {[%clk 0:02:58.4]} 3. Bf4 {[%clk 0:02:56.7]} 3... Bf5 {[%clk
0:02:58.2]} 4. e3 {[%clk 0:02:56.5]} 4... e6 {[%clk 0:02:58.3]} 5. c3 {[%clk
0:02:54.7]} 5... Bd6 {[%clk 0:02:57.7]} 6. Nbd2 {[%clk 0:02:54.1]} 6... Nbd7
{[%clk 0:02:49.4]} 7. Be2 {[%clk 0:02:46.2]} 7... O-O {[%clk 0:02:45.4]} 8. Nh4
{[%clk 0:02:38.6]} 8... Be4 {[%clk 0:02:40.6]} 9. Nxe4 {[%clk 0:02:36.6]} 9...
dxe4 {[%clk 0:02:36.9]} 10. O-O {[%clk 0:02:20.4]} 10... Bxf4 {[%clk 0:02:32.6]}
11. exf4 {[%clk 0:02:17.6]} 11... Nd5 {[%clk 0:02:33.2]} 12. g3 {[%clk 0:02:14]}
12... Nxf4 {[%clk 0:02:32.2]} 13. Re1 {[%clk 0:02:12.8]} 13... Nh3+ {[%clk
0:02:19.9]} 14. Kg2 {[%clk 0:02:12.1]} 14... Ng5 {[%clk 0:02:18.3]} 15. Bb5
{[%clk 0:01:59.6]} 15... f5 {[%clk 0:02:05.1]} 16. d5 {[%clk 0:01:46.7]} 16...
Ne5 {[%clk 0:01:38]} 17. dxe6 {[%clk 0:01:37]} 17... Qe7 {[%clk 0:01:37.3]} 18.
Qd5 {[%clk 0:01:31.5]} 18... Qxe6 {[%clk 0:01:25.1]} 19. Qxb7 {[%clk 0:01:24.4]}
19... Rab8 {[%clk 0:01:11.4]} 20. Qa6 {[%clk 0:01:23.5]} 20... Rb6 {[%clk
0:01:08.9]} 21. Qa4 {[%clk 0:01:16.9]} 21... f4 {[%clk 0:01:08.1]} 22. Rad1
{[%clk 0:00:56.4]} 22... e3 {[%clk 0:00:57.9]} 23. Bd7 {[%clk 0:00:43.4]} 23...
Nxd7 {[%clk 0:00:40.1]} 24. Qxd7 {[%clk 0:00:44.3]} 24... Qe4+ {[%clk
0:00:40.5]} 25. Kf1 {[%clk 0:00:31.6]} 25... e2+ {[%clk 0:00:37.9]} 0-1

[Event "*** Titled Tuesday Blitz"]
[Site "Chess.com"]
[Date "2020.04.07"]
[Round "3"]
[White "HonzaVykouk"]
[Black "Parhamov"]
[Result "1-0"]
[WhiteElo "2623"]
[BlackElo "3078"]
[TimeControl "180+1"]
[EndTime "13:28:49 PDT"]
[Termination "HonzaVykouk won by resignation"]

1. e4 {[%clk 0:03:00.9]} 1... c5 {[%clk 0:03:00.2]} 2. Nf3 {[%clk 0:03:01]} 2...
d6 {[%clk 0:03:00.5]} 3. d4 {[%clk 0:03:01.6]} 3... cxd4 {[%clk 0:03:00.5]} 4.
Nxd4 {[%clk 0:03:02.5]} 4... Nf6 {[%clk 0:03:01]} 5. Nc3 {[%clk 0:03:03.2]} 5...
Nc6 {[%clk 0:03:00.8]} 6. Bg5 {[%clk 0:03:02.9]} 6... e6 {[%clk 0:03:00.2]} 7.
Qd2 {[%clk 0:03:02.3]} 7... a6 {[%clk 0:03:00.1]} 8. O-O-O {[%clk 0:03:01.9]}
8... Bd7 {[%clk 0:03:00.4]} 9. f4 {[%clk 0:03:01.4]} 9... Be7 {[%clk 0:03:00.4]}
10. Kb1 {[%clk 0:02:59.6]} 10... b5 {[%clk 0:02:59.1]} 11. Bxf6 {[%clk
0:02:57.8]} 11... Bxf6 {[%clk 0:02:57.1]} 12. Nxc6 {[%clk 0:02:53.9]} 12... Bxc6
{[%clk 0:02:58]} 13. e5 {[%clk 0:02:54.8]} 13... dxe5 {[%clk 0:02:54.1]} 14. Qe1
{[%clk 0:02:53]} 14... Qc7 {[%clk 0:02:53.4]} 15. Ne4 {[%clk 0:02:29.8]} 15...
Be7 {[%clk 0:02:49.9]} 16. fxe5 {[%clk 0:02:26]} 16... Qxe5 {[%clk 0:02:49.2]}
17. Bd3 {[%clk 0:02:26.9]} 17... O-O {[%clk 0:02:46.6]} 18. g4 {[%clk
0:02:27.4]} 18... Rad8 {[%clk 0:02:43.2]} 19. h4 {[%clk 0:02:14.9]} 19... h6
{[%clk 0:02:37.4]} 20. g5 {[%clk 0:02:11.3]} 20... Rd4 {[%clk 0:02:35.7]} 21.
Nd2 {[%clk 0:01:56.7]} 21... Qxe1 {[%clk 0:02:34]} 22. Rdxe1 {[%clk 0:01:57.6]}
22... Rxh4 {[%clk 0:02:34.5]} 23. Rxh4 {[%clk 0:01:51.5]} 23... Bxg5 {[%clk
0:02:27.1]} 24. Rh2 {[%clk 0:01:47.3]} 24... Bf4 {[%clk 0:02:24.6]} 25. Rhe2
{[%clk 0:01:44.4]} 25... Rd8 {[%clk 0:02:24.3]} 26. Rf1 {[%clk 0:01:42.1]} 26...
g5 {[%clk 0:02:22.5]} 27. Ne4 {[%clk 0:01:38.6]} 27... Bxe4 {[%clk 0:02:15.5]}
28. Rxe4 {[%clk 0:01:35.2]} 28... e5 {[%clk 0:02:13.7]} 29. Rb4 {[%clk
0:01:30.9]} 29... g4 {[%clk 0:02:12.8]} 30. Rbxf4 {[%clk 0:01:24.8]} 30... exf4
{[%clk 0:02:12.6]} 31. Rxf4 {[%clk 0:01:25.7]} 31... Re8 {[%clk 0:02:12.4]} 32.
Rxg4+ {[%clk 0:01:25.3]} 32... Kf8 {[%clk 0:02:09.1]} 33. b4 {[%clk 0:01:25]}
33... h5 {[%clk 0:02:05.1]} 34. Rh4 {[%clk 0:01:24.4]} 34... Re5 {[%clk
0:02:05.2]} 35. a4 {[%clk 0:01:24.2]} 35... Kg7 {[%clk 0:02:03]} 36. axb5 {[%clk
0:01:23.9]} 36... axb5 {[%clk 0:02:02.7]} 37. Kb2 {[%clk 0:01:20.5]} 37... Kh6
{[%clk 0:01:59.9]} 38. Kc3 {[%clk 0:01:20.6]} 38... Kg5 {[%clk 0:01:59.6]} 39.
Rh1 {[%clk 0:01:20.7]} 39... h4 {[%clk 0:01:53.7]} 40. Kd4 {[%clk 0:01:21.2]}
40... f6 {[%clk 0:01:54]} 41. c4 {[%clk 0:01:18.6]} 41... bxc4 {[%clk
0:01:50.4]} 42. Bxc4 {[%clk 0:01:19.5]} 42... Re8 {[%clk 0:01:47.9]} 43. b5
{[%clk 0:01:19.2]} 43... f5 {[%clk 0:01:42.6]} 44. b6 {[%clk 0:01:17.8]} 44...
f4 {[%clk 0:01:42.7]} 45. Bd5 {[%clk 0:01:17.2]} 45... Rd8 {[%clk 0:01:40.4]}
46. b7 {[%clk 0:01:13.2]} 46... f3 {[%clk 0:01:39.9]} 47. Ke3 {[%clk 0:01:09.3]}
47... Kf5 {[%clk 0:01:35.2]} 48. Bxf3 {[%clk 0:01:06.3]} 48... Kg5 {[%clk
0:01:30.1]} 49. Rc1 {[%clk 0:01:00.6]} 49... Re8+ {[%clk 0:01:27.5]} 50. Kf2
{[%clk 0:01:00]} 50... Rb8 {[%clk 0:01:25.1]} 51. Rc8 {[%clk 0:00:59.6]} 1-0

[Event "*** Titled Tuesday Blitz"]
[Site "Chess.com"]
[Date "2020.04.07"]
[Round "3"]
[White "Alohamora11"]
[Black "joshdaruca"]
[Result "0-1"]
[WhiteElo "2468"]
[BlackElo "2764"]
[TimeControl "180+1"]
[EndTime "13:28:49 PDT"]
[Termination "joshdaruca won by resignation"]

1. e4 {[%clk 0:03:00.9]} 1... c5 {[%clk 0:02:59.9]} 2. Nf3 {[%clk 0:02:58.4]}
2... e6 {[%clk 0:02:59.8]} 3. d4 {[%clk 0:02:57.8]} 3... cxd4 {[%clk 0:03:00.7]}
4. Nxd4 {[%clk 0:02:58.6]} 4... Nc6 {[%clk 0:03:01.5]} 5. Nc3 {[%clk 0:02:57.4]}
5... Qc7 {[%clk 0:03:01.7]} 6. Nb3 {[%clk 0:02:56.7]} 6... a6 {[%clk 0:03:01.1]}
7. g3 {[%clk 0:02:57.2]} 7... Nf6 {[%clk 0:03:01.3]} 8. Bg2 {[%clk 0:02:57.5]}
8... h5 {[%clk 0:02:58.2]} 9. O-O {[%clk 0:02:54.4]} 9... h4 {[%clk 0:02:58.4]}
10. Re1 {[%clk 0:02:48.4]} 10... Ne5 {[%clk 0:02:52.9]} 11. Bf4 {[%clk 0:02:43]}
11... d6 {[%clk 0:02:48.1]} 12. a4 {[%clk 0:02:35.4]} 12... Be7 {[%clk
0:02:47.2]} 13. a5 {[%clk 0:02:34.8]} 13... Bd7 {[%clk 0:02:47.3]} 14. Na4
{[%clk 0:02:33.9]} 14... hxg3 {[%clk 0:02:39.1]} 15. hxg3 {[%clk 0:02:33.4]}
15... Bc6 {[%clk 0:02:38.1]} 16. Nb6 {[%clk 0:02:32.9]} 16... Rd8 {[%clk
0:02:38.5]} 17. Nd4 {[%clk 0:02:32.5]} 17... Kf8 {[%clk 0:02:37.8]} 18. Qe2
{[%clk 0:02:16.6]} 18... g6 {[%clk 0:02:32.8]} 19. Rad1 {[%clk 0:02:09.5]} 19...
Kg7 {[%clk 0:02:33]} 20. Bg5 {[%clk 0:01:47.5]} 20... Rh5 {[%clk 0:02:20.7]} 21.
Bxf6+ {[%clk 0:01:43.1]} 21... Bxf6 {[%clk 0:02:21.6]} 22. f4 {[%clk 0:01:43.7]}
22... Nd7 {[%clk 0:02:15.8]} 23. g4 {[%clk 0:01:26.2]} 23... Rh4 {[%clk
0:02:08.7]} 24. f5 {[%clk 0:01:01.4]} 24... Bxd4+ {[%clk 0:02:02.4]} 25. Rxd4
{[%clk 0:01:00.4]} 25... Ne5 {[%clk 0:02:02.9]} 26. f6+ {[%clk 0:00:54.6]} 26...
Kg8 {[%clk 0:01:53.3]} 27. Bf3 {[%clk 0:00:39]} 27... Rh3 {[%clk 0:01:48.6]} 28.
Rf1 {[%clk 0:00:37.1]} 28... Bb5 {[%clk 0:01:44.8]} 29. c4 {[%clk 0:00:36.8]}
29... Qc5 {[%clk 0:01:45]} 30. Kg2 {[%clk 0:00:23.6]} 30... Rxf3 {[%clk
0:01:37.9]} 31. Rxf3 {[%clk 0:00:20.2]} 31... Nxf3 {[%clk 0:01:37.5]} 32. Kxf3
{[%clk 0:00:15.9]} 32... Qxd4 {[%clk 0:01:36.3]} 33. cxb5 {[%clk 0:00:16.8]}
33... Qxf6+ {[%clk 0:01:36.2]} 34. Kg2 {[%clk 0:00:16.4]} 34... axb5 {[%clk
0:01:35.4]} 35. Qxb5 {[%clk 0:00:16.9]} 35... Qf4 {[%clk 0:01:34.5]} 36. Qe2
{[%clk 0:00:16.5]} 36... Kg7 {[%clk 0:01:34.7]} 37. b4 {[%clk 0:00:17]} 37...
Rh8 {[%clk 0:01:34.8]} 38. Kg1 {[%clk 0:00:15.6]} 38... Qc1+ {[%clk 0:01:30.5]}
39. Kf2 {[%clk 0:00:15.2]} 39... Rh2+ {[%clk 0:01:29.8]} 0-1

[Event "*** Titled Tuesday Blitz"]
[Site "Chess.com"]
[Date "2020.04.07"]
[Round "3"]
[White "Pawnpusherschessaccademy"]
[Black "saikrishnaReturns"]
[Result "0-1"]
[WhiteElo "2338"]
[BlackElo "2640"]
[TimeControl "180+1"]
[EndTime "13:28:50 PDT"]
[Termination "saikrishnaReturns won by checkmate"]

1. e4 {[%clk 0:02:59.7]} 1... e5 {[%clk 0:02:59.2]} 2. Nf3 {[%clk 0:03:00]} 2...
Nc6 {[%clk 0:03:00.1]} 3. Bb5 {[%clk 0:03:00.4]} 3... a6 {[%clk 0:03:00.3]} 4.
Ba4 {[%clk 0:03:00.4]} 4... d6 {[%clk 0:03:01.2]} 5. c3 {[%clk 0:02:55.7]} 5...
f5 {[%clk 0:03:00.9]} 6. exf5 {[%clk 0:02:51.8]} 6... Bxf5 {[%clk 0:03:01.8]} 7.
d4 {[%clk 0:02:51.6]} 7... e4 {[%clk 0:03:00]} 8. Ng5 {[%clk 0:02:45.8]} 8... d5
{[%clk 0:02:57.6]} 9. O-O {[%clk 0:02:20.9]} 9... Be7 {[%clk 0:02:57.3]} 10. Nh3
{[%clk 0:02:18.5]} 10... Nf6 {[%clk 0:02:54.2]} 11. Nf4 {[%clk 0:02:12.9]} 11...
O-O {[%clk 0:02:51.1]} 12. h3 {[%clk 0:02:07.5]} 12... Qd6 {[%clk 0:02:34.3]}
13. Be3 {[%clk 0:02:06.4]} 13... b5 {[%clk 0:02:24.6]} 14. Bc2 {[%clk 0:02:05]}
14... Na5 {[%clk 0:02:24.5]} 15. Nd2 {[%clk 0:02:02.2]} 15... Nb7 {[%clk
0:02:21.8]} 16. Nb3 {[%clk 0:01:53.9]} 16... Nd7 {[%clk 0:01:58.9]} 17. Nc1
{[%clk 0:01:44.6]} 17... g5 {[%clk 0:01:57.7]} 18. Nxd5 {[%clk 0:01:44.6]} 18...
Bd8 {[%clk 0:01:51.8]} 19. Bb3 {[%clk 0:01:39.9]} 19... Kh8 {[%clk 0:01:50.2]}
20. f3 {[%clk 0:01:08.5]} 20... c6 {[%clk 0:01:44.3]} 21. Nb4 {[%clk 0:01:08.2]}
21... a5 {[%clk 0:01:43.8]} 22. fxe4 {[%clk 0:00:55.7]} 22... Bxe4 {[%clk
0:01:42.7]} 23. Nbd3 {[%clk 0:00:55.2]} 23... Qg3 {[%clk 0:01:36.6]} 24. Rxf8+
{[%clk 0:00:50.4]} 24... Nxf8 {[%clk 0:01:37.5]} 25. Qe1 {[%clk 0:00:43]} 25...
Qxg2# {[%clk 0:00:04.4]} 0-1

[Event "*** Titled Tuesday Blitz"]
[Site "Chess.com"]
[Date "2020.04.07"]
[Round "3"]
[White "AyMitecK"]
[Black "INLOVEWITHF"]
[Result "0-1"]
[WhiteElo "2280"]
[BlackElo "2538"]
[TimeControl "180+1"]
[EndTime "13:28:51 PDT"]
[Termination "INLOVEWITHF won by resignation"]

1. e4 {[%clk 0:03:00.9]} 1... c5 {[%clk 0:02:57.8]} 2. Nc3 {[%clk 0:03:00]} 2...
d6 {[%clk 0:02:53]} 3. d4 {[%clk 0:02:59.4]} 3... cxd4 {[%clk 0:02:53.9]} 4.
Qxd4 {[%clk 0:02:59.9]} 4... Nc6 {[%clk 0:02:53.6]} 5. Bb5 {[%clk 0:02:59.8]}
5... Bd7 {[%clk 0:02:52.9]} 6. Bxc6 {[%clk 0:03:00.1]} 6... bxc6 {[%clk
0:02:51]} 7. f4 {[%clk 0:02:46.6]} 7... Nf6 {[%clk 0:02:21.1]} 8. Nf3 {[%clk
0:02:40.2]} 8... c5 {[%clk 0:02:16.3]} 9. Qd3 {[%clk 0:02:34.3]} 9... Bc6 {[%clk
0:02:09.9]} 10. O-O {[%clk 0:02:12.2]} 10... e6 {[%clk 0:02:05.7]} 11. e5 {[%clk
0:02:11.4]} 11... Nd5 {[%clk 0:01:58.8]} 12. exd6 {[%clk 0:01:54.2]} 12... Bxd6
{[%clk 0:01:54.9]} 13. Ng5 {[%clk 0:00:54.1]} 13... Nxc3 {[%clk 0:01:27.5]} 14.
Qxc3 {[%clk 0:00:55]} 14... Qf6 {[%clk 0:01:21.7]} 15. Qd3 {[%clk 0:00:41.7]}
15... Rd8 {[%clk 0:01:20.2]} 16. Qa6 {[%clk 0:00:37.6]} 16... Qd4+ {[%clk
0:01:12.2]} 17. Kh1 {[%clk 0:00:36.9]} 17... Qa4 {[%clk 0:01:13.1]} 18. Qxa4
{[%clk 0:00:32.6]} 18... Bxa4 {[%clk 0:01:14]} 19. b3 {[%clk 0:00:33.3]} 19...
Bc6 {[%clk 0:01:08.7]} 20. Bb2 {[%clk 0:00:29.1]} 20... h6 {[%clk 0:01:04.2]}
21. Bxg7 {[%clk 0:00:13.3]} 21... Rg8 {[%clk 0:01:04]} 22. Bxh6 {[%clk
0:00:13.9]} 22... Rg6 {[%clk 0:00:58]} 23. f5 {[%clk 0:00:06.7]} 23... Rxh6
{[%clk 0:00:50.1]} 24. fxe6 {[%clk 0:00:05.9]} 24... Rxh2+ {[%clk 0:00:46.4]}
25. Kg1 {[%clk 0:00:06.4]} 0-1

[Event "*** Titled Tuesday Blitz"]
[Site "Chess.com"]
[Date "2020.04.07"]
[Round "3"]
[White "Rubinstein_Akiba"]
[Black "Blagorod"]
[Result "1-0"]
[WhiteElo "2358"]
[BlackElo "2119"]
[TimeControl "180+1"]
[EndTime "13:28:51 PDT"]
[Termination "Rubinstein_Akiba won by checkmate"]

1. e4 {[%clk 0:03:00.9]} 1... e5 {[%clk 0:02:59.9]} 2. Nf3 {[%clk 0:03:00.4]}
2... Nf6 {[%clk 0:03:00.4]} 3. Nxe5 {[%clk 0:02:59.3]} 3... d6 {[%clk
0:03:00.3]} 4. Nxf7 {[%clk 0:02:59.9]} 4... Kxf7 {[%clk 0:02:59.3]} 5. Bc4+
{[%clk 0:03:00.5]} 5... Be6 {[%clk 0:02:58.1]} 6. Bxe6+ {[%clk 0:03:00]} 6...
Kxe6 {[%clk 0:02:58.2]} 7. O-O {[%clk 0:03:00.4]} 7... Kf7 {[%clk 0:02:54.7]} 8.
Nc3 {[%clk 0:03:00.4]} 8... Be7 {[%clk 0:02:53.8]} 9. Qe2 {[%clk 0:02:59.8]}
9... Nc6 {[%clk 0:02:39.9]} 10. Qc4+ {[%clk 0:02:53.1]} 10... Kf8 {[%clk
0:02:39.9]} 11. d4 {[%clk 0:02:52.8]} 11... Qe8 {[%clk 0:02:28.1]} 12. f4 {[%clk
0:02:46.4]} 12... Qf7 {[%clk 0:02:18.9]} 13. d5 {[%clk 0:02:30.6]} 13... Rc8
{[%clk 0:02:00.6]} 14. Bd2 {[%clk 0:02:06.2]} 14... Nd8 {[%clk 0:01:20.7]} 15.
e5 {[%clk 0:02:00.4]} 15... Ne8 {[%clk 0:01:08.5]} 16. Ne4 {[%clk 0:01:51.2]}
16... c6 {[%clk 0:00:54]} 17. Qe2 {[%clk 0:01:28.7]} 17... Qxd5 {[%clk
0:00:45.5]} 18. Bc3 {[%clk 0:01:22.9]} 18... h6 {[%clk 0:00:31]} 19. Rad1 {[%clk
0:01:08.3]} 19... Qb5 {[%clk 0:00:28.5]} 20. Qg4 {[%clk 0:01:02.6]} 20... Rc7
{[%clk 0:00:22.5]} 21. exd6 {[%clk 0:00:59.1]} 21... Nxd6 {[%clk 0:00:20.6]} 22.
Qxg7+ {[%clk 0:00:57]} 22... Ke8 {[%clk 0:00:20.3]} 23. Qxh8+ {[%clk 0:00:56.4]}
23... Kd7 {[%clk 0:00:20.2]} 24. Nxd6 {[%clk 0:00:45.7]} 24... Bxd6 {[%clk
0:00:19.5]} 25. Rxd6+ {[%clk 0:00:43.8]} 25... Kxd6 {[%clk 0:00:19.1]} 26. Qxd8+
{[%clk 0:00:44.3]} 26... Kc5 {[%clk 0:00:18]} 27. Qd4# {[%clk 0:00:40.1]} 1-0

[Event "*** Titled Tuesday Blitz"]
[Site "Chess.com"]
[Date "2020.04.07"]
[Round "3"]
[White "Harry_Rakkel"]
[Black "ecwinslow"]
[Result "1-0"]
[WhiteElo "2515"]
[BlackElo "2167"]
[TimeControl "180+1"]
[EndTime "13:28:52 PDT"]
[Termination "Harry_Rakkel won by resignation"]

1. c4 {[%clk 0:03:00.9]} 1... e5 {[%clk 0:02:48.5]} 2. g3 {[%clk 0:02:59.7]}
2... c6 {[%clk 0:02:44.9]} 3. d3 {[%clk 0:02:51.3]} 3... d5 {[%clk 0:02:39.3]}
4. cxd5 {[%clk 0:02:49.9]} 4... cxd5 {[%clk 0:02:39.1]} 5. Nf3 {[%clk
0:02:49.5]} 5... Nc6 {[%clk 0:02:38.3]} 6. Bg2 {[%clk 0:02:48.8]} 6... Be6
{[%clk 0:02:32.9]} 7. O-O {[%clk 0:02:47.3]} 7... f6 {[%clk 0:02:32.8]} 8. a3
{[%clk 0:02:44.9]} 8... Qd7 {[%clk 0:02:32.1]} 9. b4 {[%clk 0:02:43.5]} 9... Bd6
{[%clk 0:02:27.9]} 10. Nbd2 {[%clk 0:02:40.6]} 10... Nge7 {[%clk 0:02:22.7]} 11.
Nb3 {[%clk 0:02:31.4]} 11... b6 {[%clk 0:02:19.8]} 12. Bd2 {[%clk 0:02:22.7]}
12... O-O {[%clk 0:02:15.4]} 13. Qb1 {[%clk 0:02:18.1]} 13... Rfc8 {[%clk
0:02:12.3]} 14. Rc1 {[%clk 0:02:15.9]} 14... a5 {[%clk 0:01:55.1]} 15. bxa5
{[%clk 0:02:09]} 15... bxa5 {[%clk 0:01:54.3]} 16. Nc5 {[%clk 0:02:04.5]} 16...
Bxc5 {[%clk 0:01:52]} 17. Rxc5 {[%clk 0:02:05.4]} 17... Rcb8 {[%clk 0:01:47.1]}
18. Qc1 {[%clk 0:01:56.2]} 18... Rc8 {[%clk 0:01:33.9]} 19. e3 {[%clk
0:01:50.6]} 19... Qd6 {[%clk 0:01:25.9]} 20. Rc2 {[%clk 0:01:40.9]} 20... Nd8
{[%clk 0:01:14.6]} 21. Bc3 {[%clk 0:01:13.9]} 21... Bf5 {[%clk 0:00:53]} 22. Qd2
{[%clk 0:01:09.7]} 22... Ne6 {[%clk 0:00:45.8]} 23. Ne1 {[%clk 0:01:01]} 23...
Nc5 {[%clk 0:00:43.9]} 24. Rb1 {[%clk 0:00:55.2]} 24... Na4 {[%clk 0:00:38.7]}
25. Bxa5 {[%clk 0:00:51.1]} 25... Nc6 {[%clk 0:00:19.5]} 26. Bb4 {[%clk
0:00:40.8]} 26... Nxb4 {[%clk 0:00:19.4]} 27. Rxb4 {[%clk 0:00:39.7]} 27... Rxc2
{[%clk 0:00:17.6]} 28. Qxc2 {[%clk 0:00:39.5]} 28... Nc5 {[%clk 0:00:16.1]} 29.
Rb5 {[%clk 0:00:37.3]} 29... d4 {[%clk 0:00:15]} 30. Qxc5 {[%clk 0:00:34.9]} 1-0